bitfinex/quotes_BTCUSD_20250328
["timestamp","ask_amount","ask_price","bid_price","bid_amount"]
[1743170122498,0.316163,85084.0,85066.0,0.01219516]
[1743170122683,0.011753,85081.0,85073.0,0.235091]
[1743170122888,0.235086,85075.0,85069.0,0.011755]
[1743170123059,0.011754,85074.0,85062.0,0.23512]
[1743170123414,0.011755,85069.0,85060.0,0.235126]
[1743170123669,0.011755,85069.0,85063.0,0.14008]
[1743170123670,0.235115,85065.0,85063.0,0.14008]
[1743170123951,0.235112,85066.0,85063.0,0.14008]
[1743170124181,0.246869,85067.0,85063.0,0.14008]
[1743170124418,0.011755,85069.0,85063.0,0.14008]
[1743170124419,0.011754,85071.0,85063.0,0.14008]
[1743170124630,0.11425764,85071.0,85063.0,0.14008]
[1743170124869,0.34935564,85071.0,85066.0,0.235109]
[1743170125138,0.11425764,85071.0,85067.0,0.235108]
[1743170125371,0.11425764,85071.0,85063.0,0.151835]
[1743170125372,0.34935664,85071.0,85066.0,0.235111]
[1743170125601,0.249846,85074.0,85040.0,0.66959655]
[1743170125602,0.011755,85064.0,85053.0,0.011757]
[1743170125839,0.011755,85067.0,85060.0,0.14]
[1743170126075,0.235122,85063.0,85059.0,0.23513]
[1743170126285,0.11425764,85064.0,85061.0,0.235125]
[1743170126686,0.11425764,85064.0,85060.0,0.235127]
[1743170126981,0.246878,85062.0,85057.0,0.375096]
[1743170127325,0.235115,85065.0,85058.0,0.235133]
[1743170127593,0.001,85067.0,85064.0,0.235116]
[1743170127793,0.235114,85065.0,85061.0,0.235124]
[1743170127986,0.001,85067.0,85062.0,0.235122]
[1743170128225,0.235114,85065.0,85060.0,0.235127]
[1743170128448,0.246869,85065.0,85061.0,0.235125]
[1743170128713,0.235117,85064.0,85059.0,0.23513]
[1743170129189,0.235128,85060.0,85057.0,0.13996]
[1743170129431,0.246886,85059.0,85057.0,0.13996]
[1743170129656,0.235125,85061.0,85057.0,0.13996]
[1743170129892,0.235129,85060.0,85057.0,0.13996]
[1743170130123,0.246875,85063.0,85057.0,0.386852]
[1743170130395,0.011755,85063.0,85057.0,0.386852]
[1743170130631,0.011756,85061.0,85057.0,0.14096]
[1743170130799,0.23513,85060.0,85057.0,0.14096]
[1743170131081,0.246886,85061.0,85057.0,0.13996]
[1743170131277,0.011756,85061.0,85057.0,0.13996]
[1743170131491,0.011756,85056.0,85049.0,0.246915]
[1743170131767,0.23515,85052.0,85048.0,0.235161]
[1743170131992,0.23515,85052.0,85034.0,0.0497]
[1743170131993,0.24693,85044.0,85034.0,0.0497]
[1743170132286,0.235169,85045.0,85034.0,0.0497]
[1743170132287,0.246927,85045.0,85044.0,0.13992]
[1743170132854,0.00044444,85045.0,85040.0,0.151679]
[1743170133092,0.00044444,85045.0,85042.0,0.235177]
[1743170133307,0.00044444,85045.0,85044.0,0.235172]
[1743170133478,0.00044444,85045.0,85044.0,0.38685]
[1743170133923,0.00044444,85045.0,85044.0,0.38885]
[1743170134138,0.00044444,85045.0,85044.0,0.38985]
[1743170134755,0.00044444,85045.0,85044.0,0.24993]
[1743170134956,0.00044444,85045.0,85044.0,0.238172]
[1743170135084,0.00044444,85045.0,85044.0,0.378092]
[1743170135512,0.00044444,85045.0,85044.0,0.003]
[1743170136295,0.23561344,85045.0,85044.0,0.003]
[1743170136601,0.54090208,85045.0,85044.0,0.003]
[1743170136804,0.49150208,85045.0,85044.0,0.238172]
[1743170137135,0.00044444,85045.0,85044.0,0.24993]
[1743170137544,0.31137881,85054.0,85053.0,0.246904]
[1743170137700,0.31137881,85054.0,85053.0,0.235147]
[1743170137907,0.01137881,85054.0,85053.0,0.246904]
[1743170138107,0.02297104,85060.0,85057.0,0.235135]
[1743170138370,0.11425764,85059.0,85058.0,0.235133]
[1743170138572,0.11425764,85059.0,85055.0,0.235139]
[1743170138777,0.11425764,85059.0,85050.0,0.13992]
[1743170138993,0.002,85045.0,85044.0,0.23530399]
[1743170139243,0.64942664,85045.0,85044.0,0.00013199]
[1743170139442,0.49265764,85045.0,85044.0,0.00013199]
[1743170139603,0.73958464,85045.0,85044.0,0.00013199]
[1743170141009,0.74258464,85045.0,85044.0,0.00013199]
[1743170141418,0.85384228,85045.0,85044.0,0.00013199]
[1743170141627,0.73958464,85045.0,85044.0,0.00013199]
[1743170141822,0.74658464,85045.0,85044.0,0.00013199]
[1743170142463,0.75058464,85045.0,85044.0,0.00013199]
[1743170142667,0.305,85045.0,85044.0,0.23530399]
[1743170142896,0.305,85045.0,85044.0,0.00013199]
[1743170143091,0.539169,85045.0,85044.0,0.00013199]
[1743170143288,0.550927,85045.0,85044.0,0.00013199]
[1743170143494,0.009,85045.0,85044.0,0.23530399]
[1743170143812,0.009,85045.0,85044.0,0.24706199]
[1743170144126,0.004,85045.0,85044.0,0.24706199]
[1743170144309,0.007,85045.0,85044.0,0.24706199]
[1743170144687,0.003,85045.0,85044.0,0.00013199]
[1743170144885,0.011758,85048.0,85044.0,0.00013199]
[1743170145092,0.002,85045.0,85044.0,0.00013199]
[1743170145251,0.001,85045.0,85044.0,0.00013199]
[1743170145478,0.001,85045.0,85044.0,0.01188999]
[1743170145669,0.002,85045.0,85044.0,0.24706199]
[1743170146282,0.002,85045.0,85044.0,0.00013199]
[1743170146283,0.237169,85045.0,85044.0,0.00013199]
[1743170146479,0.248927,85045.0,85044.0,0.00013199]
[1743170146701,0.247927,85045.0,85044.0,0.00013199]
[1743170146908,0.001,85045.0,85044.0,0.23530399]
[1743170147308,0.001,85045.0,85044.0,0.24706199]
[1743170147901,0.002,85045.0,85044.0,0.24706199]
[1743170148105,0.002,85045.0,85044.0,0.24723119]
[1743170151991,0.002,85045.0,85044.0,0.29513119]
[1743170153267,0.002,85045.0,85044.0,0.43505119]
[1743170155663,0.002,85045.0,85044.0,0.54930883]
[1743170156301,0.001,85045.0,85044.0,0.54930883]
[1743170156924,0.01151028,85059.0,85058.0,0.235133]
[1743170157150,0.0003384,85066.0,85065.0,0.235114]
[1743170157861,0.0120274,85066.0,85065.0,0.235114]
[1743170158843,0.0140274,85066.0,85065.0,0.235114]
[1743170159264,0.2491384,85066.0,85061.0,0.235125]
[1743170159471,0.03724748,85066.0,85063.0,0.235119]
[1743170159797,0.03724748,85066.0,85065.0,0.18619957]
[1743170160127,0.03724748,85066.0,85062.0,0.375042]
[1743170160327,0.03924748,85066.0,85064.0,0.235117]
[1743170160537,0.03924748,85066.0,85061.0,0.386801]
[1743170160538,0.03924748,85066.0,85063.0,0.235119]
[1743170160765,0.03924748,85066.0,85064.0,0.235116]
[1743170160766,0.03724748,85066.0,85064.0,0.235116]
[1743170161038,0.03724748,85066.0,85065.0,0.246869]
[1743170161177,0.0023384,85066.0,85065.0,0.246869]
[1743170161580,4e-07,85066.0,85065.0,0.36112664]
[1743170161787,4e-07,85066.0,85065.0,0.40862664]
[1743170162008,0.02358514,85094.0,85083.0,0.246817]
[1743170162207,0.01178614,85089.0,85083.0,0.386737]
[1743170162386,0.235026,85097.0,85083.0,0.386737]
[1743170162727,0.235032,85095.0,85083.0,0.246817]
[1743170162883,0.01182083,85089.0,85083.0,0.386737]
[1743170163283,0.359505,85105.0,85083.0,0.386737]
[1743170163486,0.01162886,85094.0,85083.0,0.386737]
[1743170163687,0.10467817,85096.0,85083.0,0.50099464]
[1743170164161,0.10467817,85096.0,85095.0,0.246782]
[1743170164349,0.1048115,85096.0,85095.0,0.246782]
[1743170165506,0.1048115,85096.0,85095.0,0.36103964]
[1743170165720,0.1058115,85096.0,85095.0,0.36103964]
[1743170165920,0.1048115,85096.0,85095.0,0.36103964]
[1743170166350,0.1058115,85096.0,85095.0,0.36103964]
[1743170166542,0.1078115,85096.0,85095.0,0.36103964]
[1743170167149,0.1048115,85096.0,85095.0,0.36103964]
[1743170168544,0.00013333,85096.0,85095.0,0.36103964]
[1743170169261,0.00013333,85096.0,85095.0,0.50091964]
[1743170169493,0.00013333,85096.0,85095.0,0.25413764]
[1743170170285,0.00013333,85096.0,85095.0,0.13988]
[1743170170485,0.23516133,85096.0,85095.0,0.13988]
[1743170171105,0.00013333,85096.0,85095.0,0.13988]
[1743170171477,0.23516133,85096.0,85095.0,0.13988]
[1743170171694,0.24691233,85096.0,85095.0,0.13988]
[1743170172258,0.01188433,85096.0,85081.0,0.3]
[1743170172418,0.235051,85088.0,85085.0,0.235057]
[1743170172822,0.235051,85088.0,85086.0,0.13988]
[1743170173020,0.235053,85087.0,85086.0,0.13988]
[1743170173240,0.011752,85087.0,85086.0,0.13988]
[1743170173434,0.235078,85078.0,85077.0,0.55928]
[1743170173656,0.011752,85087.0,85077.0,0.69916]
[1743170173657,0.235053,85087.0,85077.0,0.69916]
[1743170173803,0.011752,85091.0,85078.0,0.235077]
[1743170173804,0.011752,85090.0,85078.0,0.235077]
[1743170174012,0.235062,85084.0,85080.0,0.235072]
[1743170174311,0.235062,85084.0,85081.0,0.235069]
[1743170174519,0.235062,85084.0,85079.0,0.246826]
[1743170174894,0.23507,85081.0,85077.0,0.945986]
[1743170175024,0.235076,85079.0,85078.0,0.13984]
[1743170175232,0.23507,85081.0,85078.0,0.13984]
[1743170175535,0.011752,85090.0,85078.0,0.13984]
[1743170175789,0.235073,85080.0,85078.0,0.13984]
[1743170175981,0.246831,85078.0,85077.0,0.55928]
[1743170176180,0.246831,85078.0,85077.0,0.69912]
[1743170176571,0.246831,85078.0,85077.0,0.55928]
[1743170176742,0.246831,85078.0,85077.0,0.69912]
[1743170177676,0.236078,85078.0,85077.0,0.69912]
[1743170178897,0.001,85078.0,85077.0,0.69912]
[1743170179108,0.001,85078.0,85077.0,0.945955]
[1743170179427,0.002,85078.0,85077.0,0.69912]
[1743170179806,0.002,85078.0,85077.0,0.945955]
[1743170180164,0.001,85078.0,85077.0,0.945955]
[1743170180439,0.246808,85086.0,85082.0,0.235065]
[1743170180671,0.02370968,85083.0,85082.0,0.235067]
[1743170181530,0.02370968,85083.0,85082.0,0.24682]
[1743170181777,0.02370968,85083.0,85081.0,0.235069]
[1743170182463,0.02370968,85083.0,85080.0,0.246825]
[1743170182897,0.25877468,85083.0,85078.0,0.011753]
[1743170183098,0.02370968,85083.0,85082.0,0.24682]
[1743170183581,0.011751,85099.0,85092.0,0.235039]
[1743170183792,0.235036,85093.0,85084.0,0.011753]
[1743170184007,0.235044,85091.0,85087.0,0.235051]
[1743170184221,0.246793,85092.0,85088.0,0.235049]
[1743170184464,0.03487677,85093.0,85086.0,0.235054]
[1743170184736,0.235048,85089.0,85087.0,0.13984]
[1743170184945,0.03487677,85093.0,85087.0,0.374891]
[1743170185152,0.02312577,85093.0,85092.0,0.235039]
[1743170185325,0.02312577,85093.0,85088.0,0.235048]
[1743170185523,0.235043,85091.0,85088.0,0.235048]
[1743170185869,0.235042,85092.0,85089.0,0.235047]
[1743170186097,0.235042,85091.0,85088.0,0.235048]
[1743170186282,0.235047,85090.0,85086.0,0.246806]
[1743170186483,0.235059,85085.0,85080.0,0.011753]
[1743170186731,0.235056,85087.0,85082.0,0.011753]
[1743170186878,0.235057,85086.0,85082.0,0.235066]
[1743170187094,0.235057,85086.0,85083.0,0.235063]
[1743170187304,0.235057,85086.0,85083.0,0.235064]
[1743170187800,0.235057,85086.0,85082.0,0.151593]
[1743170187946,0.001,85085.0,85084.0,0.23506]
[1743170188170,0.236059,85085.0,85083.0,0.235061]
[1743170188427,0.011752,85087.0,85083.0,0.235061]
[1743170188616,0.235061,85085.0,85081.0,0.24682]
[1743170188817,0.235043,85091.0,85083.0,0.235063]
[1743170189027,0.235045,85090.0,85087.0,0.235051]
[1743170189174,0.02312577,85093.0,85087.0,0.011752]
[1743170189527,0.01185368,85096.0,85095.0,0.246782]
[1743170190363,0.03535842,85096.0,85095.0,0.246782]
[1743170191411,0.011752,85090.0,85082.0,0.011753]
[1743170191610,0.235048,85089.0,85085.0,0.235056]
[1743170191811,0.011752,85090.0,85086.0,0.235053]
[1743170192015,0.246797,85090.0,85087.0,0.235053]
[1743170192217,0.235053,85088.0,85085.0,0.235058]
[1743170192463,0.011752,85090.0,85081.0,0.13984]
[1743170192755,0.011752,85085.0,85079.0,0.151593]
[1743170192891,0.235061,85085.0,85083.0,0.235064]
[1743170193093,0.235055,85087.0,85083.0,0.235064]
[1743170193288,0.235058,85086.0,85083.0,0.235064]
[1743170193514,0.235061,85084.0,85080.0,0.246825]
[1743170193672,0.0807,85085.0,85081.0,0.24682]
[1743170193873,0.0807,85085.0,85083.0,0.235064]
[1743170194095,0.235045,85090.0,85088.0,0.235049]
[1743170194273,0.235045,85090.0,85087.0,0.235053]
[1743170194504,0.0796,85092.0,85087.0,0.246805]
[1743170194855,0.0803,85099.0,85092.0,0.235039]
[1743170194970,0.0803,85099.0,85095.0,0.246782]
[1743170194971,0.3,85098.0,85095.0,0.246782]
[1743170195375,0.00047133,85096.0,85095.0,0.246782]
[1743170196962,0.00047133,85096.0,85095.0,0.386622]
[1743170197102,0.00047133,85096.0,85095.0,0.235031]
[1743170197762,0.00447133,85096.0,85095.0,0.235031]
[1743170197996,0.00447133,85096.0,85094.0,0.235034]
[1743170198198,0.00047133,85096.0,85095.0,0.24913209]
[1743170198439,0.00047133,85096.0,85095.0,0.246782]
[1743170198440,0.00147133,85096.0,85095.0,0.246782]
[1743170198614,0.00147133,85096.0,85095.0,0.36103964]
[1743170199252,0.00247133,85096.0,85095.0,0.36103964]
[1743170199453,0.00247133,85096.0,85095.0,0.37558049]
[1743170199661,0.011746,85133.0,85125.0,0.011747]
[1743170199929,0.01184001,85131.0,85127.0,0.234941]
[1743170200138,9.401e-05,85131.0,85130.0,0.011746]
[1743170200348,9.401e-05,85131.0,85129.0,0.246682]
[1743170200755,9.401e-05,85131.0,85130.0,0.011746]
[1743170201193,0.00409401,85131.0,85130.0,0.011746]
[1743170201605,0.00309401,85131.0,85130.0,0.011746]
[1743170201775,0.00509401,85131.0,85130.0,0.011746]
[1743170201914,0.00209401,85131.0,85130.0,0.011746]
[1743170202122,9.401e-05,85131.0,85130.0,0.011746]
[1743170202331,9.401e-05,85131.0,85130.0,0.01409505]
[1743170202544,9.401e-05,85131.0,85130.0,0.011746]
[1743170202903,9.401e-05,85131.0,85130.0,0.12600364]
[1743170203123,0.00309401,85131.0,85130.0,0.12600364]
[1743170203626,0.00509401,85131.0,85130.0,0.011746]
[1743170203832,0.00309401,85131.0,85130.0,0.011746]
[1743170204034,0.00309401,85131.0,85130.0,0.151586]
[1743170204257,0.00309401,85131.0,85130.0,0.002]
[1743170204454,0.00309401,85131.0,85130.0,0.1418]
[1743170204671,0.24977201,85131.0,85130.0,0.1418]
[1743170204906,9.401e-05,85131.0,85130.0,0.1418]
[1743170205327,9.401e-05,85131.0,85130.0,0.1428]
[1743170205498,9.401e-05,85131.0,85130.0,0.1408]
[1743170205767,9.401e-05,85131.0,85130.0,0.1398]
[1743170206017,9.401e-05,85131.0,85130.0,0.1408]
[1743170206428,0.23502701,85131.0,85128.0,0.234939]
[1743170206631,9.401e-05,85131.0,85129.0,0.374737]
[1743170206787,0.00209401,85131.0,85130.0,0.011746]
[1743170206987,0.00209401,85131.0,85129.0,0.234937]
[1743170207173,0.234961,85121.0,85112.0,0.011749]
[1743170207371,0.234958,85122.0,85118.0,0.234967]
[1743170207593,0.234954,85123.0,85120.0,0.234961]
[1743170207793,0.234954,85124.0,85119.0,0.386513]
[1743170208062,0.011747,85125.0,85120.0,0.24671]
[1743170208292,0.246688,85128.0,85125.0,0.234947]
[1743170208471,0.36094564,85128.0,85124.0,0.234951]
[1743170208690,0.234948,85125.0,85120.0,0.24671]
[1743170209082,0.234948,85125.0,85120.0,0.24771]
[1743170209311,0.234948,85125.0,85120.0,0.235962]
[1743170209312,0.011747,85124.0,85120.0,0.235962]
[1743170209443,0.12600464,85128.0,85120.0,0.012748]
[1743170209654,0.234951,85124.0,85119.0,0.386507]
[1743170209851,0.234954,85123.0,85119.0,0.374759]
[1743170210052,0.011747,85122.0,85113.0,0.246729]
[1743170210372,0.234954,85123.0,85121.0,0.234958]
[1743170210556,0.011747,85122.0,85120.0,0.1398]
[1743170210751,0.011747,85122.0,85028.0,0.05845316]
[1743170210752,0.011749,85111.0,85102.0,0.235011]
[1743170210952,0.011748,85115.0,85111.0,0.234986]
[1743170211156,0.246725,85115.0,85111.0,0.234986]
[1743170211387,0.246725,85115.0,85104.0,0.01175]
[1743170211388,0.011749,85111.0,85103.0,0.01175]
[1743170211780,0.234995,85108.0,85106.0,0.1398]
[1743170212187,0.246751,85106.0,85092.0,0.011751]
[1743170212391,0.235027,85097.0,85094.0,0.011751]
[1743170212618,0.0817,85096.0,85095.0,0.1398]
[1743170212826,0.246773,85100.0,85097.0,0.235024]
[1743170213037,0.235021,85099.0,85096.0,0.235028]
[1743170213227,0.0817,85103.0,85097.0,0.011751]
[1743170213656,0.316709,85103.0,85099.0,0.235018]
[1743170213788,0.235012,85102.0,85099.0,0.235018]
[1743170214136,0.316709,85103.0,85100.0,0.235016]
[1743170214273,0.316709,85103.0,85099.0,0.235018]
[1743170214735,0.235015,85101.0,85098.0,0.246774]
[1743170214934,0.01275,85100.0,85095.0,0.246781]
[1743170215087,0.246784,85095.0,85091.0,0.235042]
[1743170215288,0.011752,85091.0,85081.0,0.000169]
[1743170215488,0.235048,85089.0,85086.0,0.235055]
[1743170215716,0.011752,85089.0,85083.0,0.151553]
[1743170215914,0.011752,85091.0,85085.0,0.011752]
[1743170216160,0.235048,85089.0,85086.0,0.1398]
[1743170216294,0.011752,85090.0,85087.0,0.1398]
[1743170216493,0.02333105,85088.0,85086.0,0.235056]
[1743170216711,0.02333105,85088.0,85087.0,0.1398]
[1743170217123,0.02333105,85088.0,85085.0,0.235058]
[1743170217124,0.03508305,85088.0,85085.0,0.235058]
[1743170217335,0.02333105,85088.0,85086.0,0.374855]
[1743170217532,0.02333105,85088.0,85087.0,0.011752]
[1743170217917,0.02333105,85088.0,85087.0,0.246805]
[1743170218413,0.01175,85100.0,85096.0,0.235028]
[1743170218627,0.0821,85109.0,85104.0,0.01175]
[1743170218864,0.3,85110.0,85105.0,0.235003]
[1743170219067,0.3,85110.0,85109.0,0.234992]
[1743170219273,0.3,85110.0,85106.0,0.24675]
[1743170219401,0.3,85110.0,85109.0,0.246741]
[1743170219602,0.03486786,85110.0,85109.0,0.246741]
[1743170219803,0.04492342,85110.0,85109.0,0.246741]
[1743170220008,0.02177363,85110.0,85109.0,0.246741]
[1743170220206,0.02677363,85110.0,85109.0,0.246741]
[1743170220774,0.005,85110.0,85109.0,0.246741]
[1743170220906,0.005,85110.0,85109.0,0.382541]
[1743170221546,0.2584749,85117.0,85105.0,0.01175]
[1743170221547,0.011749,85111.0,85105.0,0.01175]
[1743170221747,0.011749,85111.0,85104.0,0.235006]
[1743170221748,0.0758,85112.0,85104.0,0.01175]
[1743170221948,0.002,85110.0,85109.0,0.011749]
[1743170222104,0.002,85110.0,85109.0,0.246741]
[1743170222515,0.02177339,85111.0,85110.0,0.246739]
[1743170222748,0.02277339,85111.0,85110.0,0.246739]
[1743170222949,0.02277339,85111.0,85106.0,0.15155]
[1743170222950,0.23499,85110.0,85106.0,0.15155]
[1743170223246,0.23499,85110.0,85107.0,0.246746]
[1743170223465,0.02177339,85111.0,85108.0,0.234994]
[1743170223698,0.234995,85108.0,85106.0,0.1398]
[1743170223937,0.246762,85103.0,85096.0,0.0001689]
[1743170224170,0.246776,85097.0,85096.0,0.0001689]
[1743170224394,0.235024,85098.0,85096.0,0.0001689]
[1743170224612,0.02177339,85097.0,85096.0,0.0001689]
[1743170224837,0.02177339,85097.0,85096.0,0.2351969]
[1743170225069,0.02177339,85097.0,85096.0,0.2469479]
[1743170225799,0.02177339,85097.0,85096.0,0.36120554]
[1743170226013,4.442e-05,85110.0,85109.0,0.246741]
[1743170226140,4.442e-05,85110.0,85109.0,0.386541]
[1743170226560,4.442e-05,85110.0,85109.0,0.58109864]
[1743170226767,4.442e-05,85110.0,85109.0,0.59563949]
[1743170227211,4.442e-05,85110.0,85109.0,0.89563949]
[1743170227422,4.2e-07,85110.0,85109.0,0.90063949]
[1743170227601,4.2e-07,85110.0,85109.0,2.01026849]
[1743170227801,4.2e-07,85110.0,85109.0,0.90063949]
[1743170228507,4.2e-07,85110.0,85109.0,0.90463949]
[1743170228936,4.2e-07,85110.0,85109.0,0.90063949]
[1743170229189,0.00100042,85110.0,85109.0,0.90463949]
[1743170229314,4.2e-07,85110.0,85109.0,0.90463949]
[1743170230430,4.2e-07,85110.0,85109.0,0.90459949]
[1743170230630,4.2e-07,85124.0,85123.0,0.246701]
[1743170230806,4.2e-07,85124.0,85123.0,1.23457949]
[1743170231799,4.2e-07,85124.0,85123.0,1.23857949]
[1743170232015,4.2e-07,85124.0,85123.0,1.23957949]
[1743170232196,4.2e-07,85124.0,85123.0,1.23557949]
[1743170232329,4.2e-07,85124.0,85123.0,1.31467949]
[1743170232535,4.2e-07,85124.0,85123.0,1.36757949]
[1743170233144,2.7e-07,85124.0,85123.0,1.36757949]
[1743170233348,2.7e-07,85124.0,85123.0,1.38757949]
[1743170233543,6.7e-07,85140.0,85139.0,0.02628585]
[1743170233762,0.00044495,85140.0,85139.0,0.28030349]
[1743170234583,0.00044495,85140.0,85139.0,0.12600264]
[1743170234843,0.00044495,85140.0,85139.0,0.28030349]
[1743170235279,0.00044495,85140.0,85139.0,0.28630349]
[1743170235476,0.00144495,85140.0,85139.0,0.29130349]
[1743170236104,0.00144495,85140.0,85139.0,0.17515173]
[1743170236346,0.00144495,85140.0,85139.0,0.31491173]
[1743170236548,0.00144495,85140.0,85139.0,0.30037088]
[1743170236734,0.00144495,85140.0,85139.0,0.27676264]
[1743170237745,0.00144495,85140.0,85139.0,0.29130349]
[1743170238342,0.00144495,85140.0,85139.0,0.59130349]
[1743170240771,0.00144495,85140.0,85139.0,0.84935555]
[1743170241878,1.5e-07,85148.0,85146.0,0.546634]
[1743170242080,1.5e-07,85148.0,85147.0,0.37542949]
[1743170242081,6.796e-05,85148.0,85147.0,0.37542949]
[1743170242525,6.796e-05,85148.0,85147.0,0.42322949]
[1743170243533,6.796e-05,85148.0,85147.0,0.42722949]
[1743170244893,6.796e-05,85148.0,85147.0,0.43122949]
[1743170246088,6.796e-05,85148.0,85147.0,0.73122949]
[1743170246264,6.781e-05,85148.0,85147.0,1.29002949]
[1743170246848,3.6e-07,85152.0,85151.0,0.3]
[1743170247052,3.6e-07,85152.0,85151.0,0.67541749]
[1743170247979,3.6e-07,85152.0,85151.0,0.68041749]
[1743170248381,3.6e-07,85152.0,85151.0,0.68541749]
[1743170248581,3.6e-07,85152.0,85151.0,0.69041749]
[1743170248985,5.6e-07,85173.0,85172.0,0.234818]
[1743170249195,5.6e-07,85173.0,85172.0,0.50049564]
[1743170250202,5.6e-07,85173.0,85172.0,0.36081564]
[1743170250409,5.6e-07,85173.0,85172.0,0.50049564]
[1743170251452,5.6e-07,85173.0,85172.0,0.50349564]
[1743170251862,5.6e-07,85173.0,85172.0,0.50649564]
[1743170254497,5.6e-07,85173.0,85172.0,0.50645564]
[1743170255063,5.6e-07,85173.0,85172.0,0.36681564]
[1743170255252,0.08100056,85173.0,85172.0,0.392198]
[1743170255878,0.08100056,85173.0,85172.0,0.252558]
[1743170256076,0.08100056,85173.0,85172.0,0.392198]
[1743170256506,0.08100056,85173.0,85172.0,0.389198]
[1743170256908,0.08100056,85173.0,85172.0,0.390198]
[1743170257171,0.08100056,85173.0,85172.0,0.387198]
[1743170257641,0.0926653,85173.0,85172.0,0.001]
[1743170257844,0.0926653,85173.0,85172.0,0.387198]
[1743170259166,0.0926653,85173.0,85172.0,0.001]
[1743170259402,0.3392213,85173.0,85172.0,0.14064]
[1743170259626,0.0926653,85173.0,85172.0,0.14064]
[1743170259804,0.3392213,85173.0,85172.0,0.001]
[1743170259955,0.0926653,85173.0,85172.0,0.001]
[1743170260157,0.0926653,85173.0,85172.0,0.0011688]
[1743170261803,0.0926653,85173.0,85172.0,0.2477268]
[1743170262245,0.0926653,85173.0,85172.0,0.0011688]
[1743170262451,0.34207406,85173.0,85172.0,0.0011688]
[1743170262664,0.36292385,85173.0,85172.0,0.0011688]
[1743170262868,0.3392213,85173.0,85172.0,0.0011688]
[1743170263648,0.3392213,85173.0,85172.0,0.0001688]
[1743170264448,0.45347894,85173.0,85172.0,0.0001688]
[1743170266488,0.0926653,85173.0,85172.0,0.2349868]
[1743170266681,0.0926653,85173.0,85172.0,0.2467268]
[1743170267083,0.0926653,85173.0,85172.0,0.0001688]
[1743170267707,0.34207406,85173.0,85172.0,0.0001688]
[1743170267896,0.3392213,85173.0,85172.0,0.0001688]
[1743170268540,0.0926653,85173.0,85172.0,0.0001688]
[1743170269605,0.1044053,85173.0,85172.0,0.0001688]
[1743170269810,0.3392213,85173.0,85172.0,0.0001688]
[1743170270501,0.3274813,85173.0,85172.0,0.0001688]
[1743170270746,0.0926653,85173.0,85172.0,0.2349868]
[1743170270982,0.0116653,85173.0,85172.0,0.2467268]
[1743170271215,5.6e-07,85173.0,85172.0,0.2467268]
[1743170276372,5.6e-07,85173.0,85172.0,0.3863668]
[1743170281279,5.6e-07,85173.0,85172.0,0.2467268]
[1743170281480,5.6e-07,85173.0,85172.0,0.3863668]
[1743170281892,0.08250056,85173.0,85172.0,0.0001688]
[1743170282053,0.32905656,85173.0,85172.0,0.0001688]
[1743170282259,0.7433142,85173.0,85172.0,0.0001688]
[1743170282491,0.7927142,85173.0,85172.0,0.0001688]
[1743170283589,0.80725505,85173.0,85172.0,0.0001688]
[1743170283795,0.7927142,85173.0,85172.0,0.0001688]
[1743170284370,0.67845656,85173.0,85172.0,0.0001688]
[1743170284566,0.43190056,85173.0,85172.0,0.0001688]
[1743170284770,0.38250056,85173.0,85172.0,0.0001688]
[1743170285362,0.38250056,85173.0,85172.0,0.2467268]
[1743170285806,5.6e-07,85173.0,85172.0,0.2467268]
[1743170286213,0.00100056,85173.0,85172.0,0.2467268]
[1743170286595,5.6e-07,85173.0,85172.0,0.2467268]
[1743170286793,5.6e-07,85173.0,85172.0,0.0001688]
[1743170286996,0.00300056,85173.0,85172.0,0.0001688]
[1743170287176,0.00500056,85173.0,85172.0,0.0001688]
[1743170287533,5.6e-07,85173.0,85172.0,0.2349868]
[1743170287765,0.23781656,85173.0,85172.0,0.0001688]
[1743170287897,0.23781656,85173.0,85172.0,0.2349868]
[1743170287898,0.00500056,85173.0,85172.0,0.2349868]
[1743170288098,0.00500056,85173.0,85172.0,0.0001688]
[1743170288296,0.00500056,85173.0,85172.0,0.2467268]
[1743170295050,0.00500056,85173.0,85172.0,0.36098444]
[1743170295195,5.6e-07,85173.0,85172.0,0.36098444]
[1743170295404,5.6e-07,85173.0,85172.0,0.36198444]
[1743170295605,5.6e-07,85173.0,85172.0,0.36298444]
[1743170295974,5.6e-07,85175.0,85174.0,0.246553]
[1743170296203,0.00013375,85175.0,85174.0,0.40851064]
[1743170296445,7.5e-07,85175.0,85174.0,0.40773064]
[1743170296660,7.5e-07,85175.0,85174.0,0.49083064]
[1743170296870,7.5e-07,85175.0,85174.0,0.79083064]
[1743170297874,7.5e-07,85181.0,85180.0,0.246535]
[1743170298079,7.5e-07,85181.0,85180.0,0.36079264]
[1743170298277,7.5e-07,85181.0,85180.0,0.50039264]
[1743170299124,7.5e-07,85181.0,85180.0,0.91947264]
[1743170299325,7.5e-07,85181.0,85180.0,1.06007264]
[1743170301568,7.5e-07,85181.0,85180.0,0.92147264]
[1743170301776,7.5e-07,85181.0,85180.0,0.946775]
[1743170301945,7.5e-07,85181.0,85180.0,0.807215]
[1743170302722,7.5e-07,85181.0,85180.0,0.946775]
[1743170302941,7.5e-07,85181.0,85180.0,0.807215]
[1743170303151,7.5e-07,85181.0,85180.0,0.14156]
[1743170303352,7.5e-07,85181.0,85180.0,0.388095]
[1743170304169,0.24653375,85181.0,85180.0,0.002]
[1743170304928,0.44109139,85181.0,85180.0,0.002]
[1743170305675,0.49009139,85181.0,85180.0,0.002]
[1743170305883,0.49009139,85181.0,85180.0,0.001]
[1743170306270,0.49109139,85181.0,85180.0,0.001]
[1743170306656,0.79109139,85181.0,85180.0,0.001]
[1743170307052,0.246553,85174.0,85173.0,0.0016827]
[1743170308099,0.234811,85175.0,85173.0,0.0016827]
[1743170308308,0.14203975,85181.0,85173.0,0.0016827]
[1743170308309,7.5e-07,85181.0,85180.0,0.246535]
[1743170311801,0.00100075,85181.0,85180.0,0.246535]
[1743170311999,0.00200075,85181.0,85180.0,0.246535]
[1743170312405,0.00100075,85181.0,85180.0,0.246535]
[1743170313513,0.00100075,85181.0,85180.0,0.13956]
[1743170313885,7.5e-07,85181.0,85180.0,0.374356]
[1743170314099,7.5e-07,85181.0,85180.0,0.386095]
[1743170314294,7.5e-07,85181.0,85180.0,0.387095]
[1743170314866,0.00100075,85181.0,85180.0,0.386095]